Cogmind - Beta 15 @@@ ROGUE MODE // 2025.09.20 @ 16:41:55 Player: beans Result: Destroyed by Y-45 Defender with Beam Rifle Performance ------------- Evolutions (1) 500 Regions Visited (3) 600 Robots Destroyed (12) 60 Value Destroyed (397) 397 Prototype IDs (3) 60 Alien Tech Used (0) 0 Bonus (0) 0 TOTAL SCORE: 1617 Bonus ------- None Cogmind --------- Core Integrity 0/400 Matter 91/300 Energy 100/100 System Corruption 0% Temperature Cool (9) Movement Core (50) Location -9/Materials Parts ------- > --- POWER (1) -------- (None) > --- PROPULSION (2) --- (None) > --- UTILITY (4) ------ (None) > --- WEAPON (2) ------- Improved Assault Rifle > --- INVENTORY (5) ---- (None) Peak State ------------ > --- POWER ------------ (None) > --- PROPULSION ------- (None) > --- UTILITY ---------- (None) > --- WEAPON ----------- Improved Assault Rifle Improved Assault Rifle > --- INVENTORY -------- (None) [Rating: 6] Favorites ----------- Power Ion Engine Engine Ion Engine Propulsion Light Treads Treads Light Treads Utility None Weapon Light Assault Rifle Ballistic Gun Light Assault Rifle Launcher Rocket Launcher Build | -11 -10 -10 -9 ------- Run | Yrd Mat Min Mat Slots Evolved 2 | . . . 2 Power . | . . . . Propulsion . | . . . . Utility 2 | . . . 2 Weapon . | . . . . Parts Attached 9 | 4 2 1 2 Power 1 | . 1 . . Engine 1 | . 1 . . Core . | . . . . Reactor . | . . . . Propulsion 2 | 2 . . . Treads 2 | 2 . . . Leg . | . . . . Wheel . | . . . . Hover . | . . . . Flight . | . . . . Utility . | . . . . Device . | . . . . Storage . | . . . . Processor . | . . . . Hackware . | . . . . Protection . | . . . . Artifact . | . . . . Weapon 6 | 2 1 1 2 Energy Gun . | . . . . Energy Cannon . | . . . . Ballistic Gun 5 | 2 1 . 2 Ballistic Cannon . | . . . . Launcher 1 | . . 1 . Special Weapon . | . . . . Impact Weapon . | . . . . Slashing Weapon . | . . . . Piercing Weapon . | . . . . Special Melee Weapon . | . . . . Unidentified Prototypes 1 | . . . 1 Parts Lost 8 | . 3 1 4 Power 1 | . . . 1 Propulsion 2 | . 1 1 . Utility . | . . . . Weapon 5 | . 2 . 3 Highest Loss Streak 3 | . 3 1 3 To Critical Strikes . | . . . . Average Backups . | 1 . . . Power . | . . . . Propulsion . | . . . . Utility . | . . . . Weapon . | 1 . . . Tool/Special . | . . . . Unused Backups . | . . . . Power . | . . . . Propulsion . | . . . . Utility . | . . . . Weapon . | . . . . Tool/Special . | . . . . Average Slot Usage (%) 44 | . 55 42 24 Engine 7 | . 3 14 5 Treads 11 | . 25 1 . Ballistic Gun 18 | . 25 14 12 Launcher 6 | . . 13 6 Peak Build Rating 6 | 4 5 5 6 Average Rating 3 | 2 3 3 3 On Entrance 2 | . 4 3 4 Naked Turns 19 | . . . 19 Heaviest Build 10 | 3 8 10 10 Greatest Support 40 | 40 40 20 3 Greatest Overweight (x) 3 | . . 3 3 Average Overweight (x) 1 | . . 2 1 Largest Inventory Capacity 5 | 5 5 5 5 Average Capacity 5 | 5 5 5 5 Most Carried 5 | 5 2 1 1 Average Carried . | 1 . . . Final Capacity 5 | 5 5 5 5 Final Carried 1 | 1 . . . Class Distribution -------------------- 100% | Mutant Dominant Class ---------------- Mutant | -10/Materials Mutant | -10/Mines Mutant | -9/Materials Resources | -11 -10 -10 -9 ----------- Run | Yrd Mat Min Mat Matter Collected 363 | 112 216 9 26 Remotely . | . . . . Salvage Created 416 | . 308 54 54 Parts 28 | . 20 1 7 Haulers Intercepted . | . . . . Recyclers Shooed 2 | . 2 . . Parts Field Recycled . | . . . . Retrieved Matter . | . . . . Parts Self-Destructed . | . . . . Prevented . | . . . . Kills | -11 -10 -10 -9 ------- Run | Yrd Mat Min Mat Combat Hostiles Destroyed 12 | . 9 2 1 Guns 11 | . 9 1 1 AOE 1 | . . 1 . Classes Destroyed 3 | . 2 . 1 Swarmer 2 | . 2 . . Grunt 9 | . 7 2 . Sentry 1 | . . . 1 Best Kill Streak 4 | . 4 2 1 Combat Bots Only 4 | . 4 2 1 Max Kills in Single Turn 1 | . 1 1 1 Gunslinging . | . . . . Exploded 1 | . . 1 . Melee . | . . . . Uniques/NPCs Destroyed . | . . . . Combat | -11 -10 -10 -9 -------- Run | Yrd Mat Min Mat Hostile Shots Fired 177 | . 77 13 87 Missed 57 | . 21 5 31 Hits 120 | . 56 8 56 Melee 2 | . . . 2 Projectile 118 | . 56 8 54 Critical Strikes 4 | . . . 4 Damage Taken 1498 | . 561 149 788 Core 525 | . 73 49 403 Absorbed by Shields . | . . . . Core Remaining (%) 75 | 100 . 51 . Volleys Fired 69 | . 41 9 19 Largest 2 | . 2 2 2 Hottest 53 | . 40 53 53 Shots Fired 118 | . 72 14 32 Gun 110 | . 72 9 29 Cannon . | . . . . Launcher 8 | . . 5 3 Special . | . . . . Kinetic 110 | . 72 9 29 Thermal . | . . . . Explosive 8 | . . 5 3 Electromagnetic . | . . . . Robot Hit Streak 24 | . 13 8 24 Robot Miss Streak 3 | . 3 2 1 Penetration Max . | . . . . Secondary Targets 4 | . 3 . 1 Max Gunslinging Chain 1 | . 1 . 1 Shots Hit Robots 89 | . 50 9 30 Core Hits 32 | . 20 4 8 Critical Kills 1 | . 1 . . Critical Parts Destroyed . | . . . . Critical Strikes 1 | . 1 . . Destroy 1 | . 1 . . Melee Attacks . | . . . . Impact . | . . . . Slashing . | . . . . Piercing . | . . . . Sneak Attacks . | . . . . Combat Hostiles . | . . . . Follow-up Attacks . | . . . . Damage Inflicted 1311 | . 489 284 538 Guns 911 | . 489 42 380 Cannons . | . . . . Explosions 400 | . . 242 158 Melee . | . . . . Ramming . | . . . . Kinetic 911 | . 489 42 380 Thermal . | . . . . Explosive 400 | . . 242 158 Electromagnetic . | . . . . Impact . | . . . . Slashing . | . . . . Piercing . | . . . . Highest Corruption . | . . . . Average Corruption . | . . . . Corruption Purged . | . . . . Corruption Blocked . | . . . . Overload Shots . | . . . . Overflow Damage 10 | . . 10 . Projectiles . | . . . . Explosions 10 | . . 10 . Melee . | . . . . Knockbacks . | . . . . Impact . | . . . . Kinetic . | . . . . Secondary . | . . . . Self-Inflicted Damage 41 | . . 41 . Shots 3 | . . 3 . Rammed . | . . . . Targets Rammed . | . . . . Kicked . | . . . . Crushed . | . . . . Highest Temperature 40 | . 8 40 25 Average Temperature 9 | . 2 20 9 Received Heat Transfer 633 | . 234 60 339 Siege Activations . | . . . . Martial Activations . | . . . . Shielding Activations . | . . . . Robots Disrupted . | . . . . Combat Hostiles . | . . . . Robots Corrupted . | . . . . Combat Hostiles . | . . . . Parts Fried . | . . . . Impact Corruptions . | . . . . Robots Melted . | . . . . Combat Hostiles . | . . . . Parts Melted . | . . . . Heat Transferred . | . . . . Parts Sabotaged . | . . . . Parts Stolen . | . . . . Parts Stripped . | . . . . Power Chain Reactions . | . . . . Alert | -11 -10 -10 -9 ------- Run | Yrd Mat Min Mat Maximum Alert Level . | . . . . Low Security (%) 100 | 100 100 100 100 Level 1 . | . . . . Level 2 . | . . . . Level 3 . | . . . . Level 4 . | . . . . Level 5 . | . . . . High Security . | . . . . Max Security . | . . . . Peak Influence 100 | . 100 82 30 Initial 27 | . . 27 . Average 26 | . 42 28 1 Influence Increases 361 | . 235 75 51 Destroy 0b10 Robot/C 240 | . 180 40 20 Destroy Leader 70 | . 50 10 10 Successful Hack 5 | . 5 . . Destroy Structure 46 | . . 25 21 Influence Decreases 341 | . 165 145 31 Entered New Map 43 | . . 43 . Time Decay 237 | . 135 92 10 Lost Part 61 | . 30 10 21 Squads Dispatched 3 | . 3 . . Investigation 2 | . 2 . . Extermination . | . . . . Reinforcement 1 | . 1 . . Assault . | . . . . Garrison . | . . . . Intercept . | . . . . Searches Triggered . | . . . . Construction Impeded . | . . . . Haulers Reinforced . | . . . . Active Scanning Responses . | . . . . Cargo Convoy Interrupts . | . . . . Stealth | -11 -10 -10 -9 --------- Run | Yrd Mat Min Mat Distress Signals . | . . . . Communications Jammed . | . . . . Distress Signals . | . . . . Times Spotted 20 | . 13 2 5 Peak Tracking Total 6 | . 6 2 5 Tactical Retreats . | . . . . Traps | -11 -10 -10 -9 ------- Run | Yrd Mat Min Mat Traps Triggered 1 | . 1 . . Indirectly . | . . . . Trap Hack Attempts . | . . . . Triggered . | . . . . Disarmed . | . . . . Reprogrammed . | . . . . Reused . | . . . . Traps Extracted . | . . . . Installed . | . . . . Triggered . | . . . . Machines | -11 -10 -10 -9 ---------- Run | Yrd Mat Min Mat Machines Disabled . | . . . . Max in Single Turn . | . . . . Machines Repaired . | . . . . Machines Dismantled . | . . . . Machines Sabotaged . | . . . . Overloaded Fab Kills . | . . . . Hacking | -11 -10 -10 -9 --------- Run | Yrd Mat Min Mat Machines Accessed 3 | . 3 . . Terminals 3 | . 3 . . Fabricators . | . . . . Repair Stations . | . . . . Recycling Units . | . . . . Scanalyzers . | . . . . Garrison Access . | . . . . Total Hacks 5 | . 5 . . Successful 2 | . 2 . . Failed 3 | . 3 . . Catastrophic 1 | . 1 . . Database Lockouts . | . . . . Manual . | . . . . Terminals 5 | . 5 . . Fabricators . | . . . . Repair Stations . | . . . . Recycling Units . | . . . . Scanalyzers . | . . . . Garrison Access . | . . . . Terminal Hacks 2 | . 2 . . Record 1 | . 1 . . Prototype ID Bank 1 | . 1 . . Fabricator Hacks . | . . . . Repair Station Hacks . | . . . . Recycling Unit Hacks . | . . . . Scanalyzer . | . . . . Garrison Access Hacks . | . . . . Unauthorized Hacks . | . . . . Terminals . | . . . . Fabricators . | . . . . Repair Stations . | . . . . Recycling Units . | . . . . Scanalyzers . | . . . . Garrison Access . | . . . . Data Cores Recovered . | . . . . Used . | . . . . Hacking Detections 3 | . 3 . . Full Trace Events 1 | . 1 . . Feedback Events . | . . . . Feedback Blocked . | . . . . Robot Schematics Acquired . | . . . . Robots Built . | . . . . Authchips . | . . . . Time . | . . . . Total Robot Build Rating . | . . . . Part Schematics Acquired . | . . . . Parts Built . | . . . . Authchips . | . . . . Time . | . . . . Total Part Build Rating . | . . . . Parts Repaired . | . . . . Time . | . . . . Parts Recycled . | . . . . Recycled Matter . | . . . . Retrieved Matter . | . . . . Retrieved Components . | . . . . Parts Scanalyzed . | . . . . Part Schematics Acquired . | . . . . Parts Damaged . | . . . . Bothacking | -11 -10 -10 -9 ------------ Run | Yrd Mat Min Mat Used RIF Installer . | . . . . Robots Hacked . | . . . . Non-combat . | . . . . Combat . | . . . . Robot Hacks Applied . | . . . . Relay Couplers Released . | . . . . Fabnet Peak Effective % . | . . . . Robots Rewired . | . . . . Allies Hacked . | . . . . Hacks Repelled . | . . . . Allies | -11 -10 -10 -9 -------- Run | Yrd Mat Min Mat Total Allies . | . . . . Largest Group . | . . . . Highest-Rated Group . | . . . . Highest-Rated Ally . | . . . . Total Orders . | . . . . Ally Attacks . | . . . . Total Damage . | . . . . Kills . | . . . . Allies Corrupted . | . . . . Allies Melted . | . . . . Intel | -11 -10 -10 -9 ------- Run | Yrd Mat Min Mat Active Infowar (turns) . | . . . . Robot Analysis Total . | . . . . Derelict Logs Recovered 1 | . . 1 . Drone Launches . | . . . . Drone Recoveries . | . . . . Exploration | -11 -10 -10 -9 ------------- Run | Yrd Mat Min Mat Turns Passed 840 | 50 331 287 172 Spaces Moved 401 | 35 140 133 93 Core 237 | 13 . 131 93 Treads 164 | 22 140 2 . Legs . | . . . . Wheels . | . . . . Hover . | . . . . Flight . | . . . . Fastest Speed 50 | 50 160 160 50 Average Speed 161 | 119 160 199 125 Slowest Speed 200 | 160 160 200 200 Overloaded Moves . | . . . . Propulsion Burnouts . | . . . . Robots Hopped . | . . . . Potential Cave-ins . | . . . . Cave-ins Triggered . | . . . . Exploration Rate (%) 18 | 3 25 29 18 Regions Visited 3 Branch Regions 1 Pre-discovered Areas 1 | . . 1 . Known Exits Taken . | . . . . Unknown Exits Taken 3 | 1 1 1 . Scrap Searched . | . . . . Spaces Dug . | . . . . Terrain Destroyed 73 | . . 51 22 Melee . | . . . . Projectile . | . . . . AOE 73 | . . 51 22 Terrain Rammed . | . . . . Walls Destroyed . | . . . . Machines Disabled . | . . . . Actions | -11 -10 -10 -9 --------- Run | Yrd Mat Min Mat Total 488 | 43 183 143 119 Wait 1 | . . . 1 Move 398 | 34 139 132 93 Hop . | . . . . Pick Up 9 | 5 1 1 2 Fast Attach . | . . . . Attach 10 | 4 2 1 3 Detach 1 | . . . 1 Swap . | . . . . Drop . | . . . . Fire 69 | . 41 9 19 Melee . | . . . . Ram . | . . . . Kick . | . . . . Crush . | . . . . Escape Stasis . | . . . . Rewire . | . . . . Trap . | . . . . Miscellaneous . | . . . . Route ------- -11/Scrapyard -10/Materials -10/Mines -9/Materials History --------- Turn | Location | Event 8 | -11/Scrapyard | Discovered new exit (range 15) 51 | -11/Scrapyard | Entered Materials 298 | -10/Materials | Discovered new exit (range 15) 311 | -10/Materials | Build established: Mutant 370 | -10/Materials | Lost 3 parts (1n2w) 382 | -10/Materials | Entered Mines 389 | -10/Mines | Received a Rocket Launcher from a helpful Derelict 469 | -10/Mines | Met a Derelict bent on vengeance 471 | -10/Mines | Learned location of Zion (-6) 653 | -10/Mines | Discovered new exit (range 8) 669 | -10/Mines | Entered Materials 669 | -9/Materials | Evolved 2 slots: Utility x2 807 | -9/Materials | Lost 3 parts (1p2w) 818 | -9/Materials | Core integrity fell below 50% 831 | -9/Materials | Core integrity fell below 20% 841 | -9/Materials | Destroyed by Y-45 Defender with Beam Rifle Last Messages --------------- Lgt. Assault Rifle destroyed. T-07 Excavator is excavating. Critical hit (Burn: +37). A-02 Transporter destroyed. Acquired 26 matter. Acquired Prototype Ballistic Gun. Identified Imp. Assault Rifle. Acquired Imp. Assault Rifle. Destroyed Lgt. Armor Plating. R-06 Scavenger collects Particle Gun. R-06 Scavenger collects Weight Redist. System. B-36 Bruiser destroyed. M-13 Machinist repairs Y-45 Defender. Y-45 Defender destroyed. Switching to secondary target: Y-45 Defender. R-06 Scavenger collects Lgt. Treads. Imp. Assault Rifle destroyed. R-06 Scavenger collects Heat Sink. R-06 Scavenger collects Lgt. Treads. M-13 Machinist repairs R-06 Scavenger. Map ----- +----------------------------------------------------+ | ?????????????????????????????????????????????????? | | ?????????????????????????????????????????????????? | | ?????????????????????????????????????????????????? | | ?????????????????????????????????????????????????? | | ?????????????????????????????????????????????????? | | ?????????????????????????????????????????????????? | | ?????????????????????????????????????????????????? | | ?????????????????????????????????????????????????? | | ?????????????????????????????????????????????????? | | ?????????????????????????????????????????????????? | | ????????????????????????? ?????????????????????? | | ????????????????????????? #????????????????????? | | ????????????????????????? #????????????????????? | | ????????????????????????? #????????????????????? | | ????????????????????????? #????????????????????? | | ????????????????????????? #????????????????????? | | ????????????????????????# +????????#???????????? | | ????????????????????????+ #??????? #???????????? | | ????????????????????????# #????? ?????????????? | | ????????????????????????# #???? ??????????????? | | ????????????????????????# u####+##??????????????? | | ????????????????????????# ???????????????? | | ????????????????????????+ ?????????????????? | | ????????????????????????# ???????????????????? | | ????????????????????????# #???????????? ????? | | ????????????????????????#@ #???????????? #????? | | ????????????????????????# #???????????? #????? | | ????????????????????????# r #???????????? ????? | | ???????????????????????## ##??????????# #????? | | ???????????????????????# gg!=#??????????# #????? | | ???????????????????????# rm[#??????????# #????? | | ???????????????????????# *Y[#??????????# #????? | | ???????????????????????# m #??????????# #????? | | ???????????????????????# #??????????# #????? | | ??????????????????####### ##??????????# #????? | | ??????????????????# # ############# #????? | | ??????????????????# + ###??? | | ??????????????????# # # #??? | | ??????????????????# # #??? | | ??????????????????# ?## ###+########## ###??? | | ??????????????????# ??# #? ????????## ###???? | | ??????????????????# ???# #? ??????#### # ##??? | | ??????????????????####???# # ?????# ##?? | | ?????????????????????????# # ????## ### | | ?????????????????????????# # ???# | | ?????????????????????????# # / | | ?????????????????????????# # ## | | ?????????????????????????? # ??# #### | | ?????????????????????????? #########??# #??# | | ?????????????????????????? ???????????## #??# | +----------------------------------------------------+ Best States ------------- Heat Dissipation 28 Energy Generation 10 Energy Capacity 250 Matter Stores 249 Matter Capacity 300 Sight Range 16 Terrain Scan Density 10 Evasion (%) 50 Recoil Reduction 2 Item Schematics ----------------- None Robot Schematics ------------------ None Fabricated ------------ Nothing Repaired ---------- Nothing Alien Tech Used ----------------- None Achievements -------------- None Challenges ------------ None Game ------ Seed MetafieldAntigravBlasthammer Manual? 0 Play Time 00:09:17 Cumulative 151.3 hours Start 2025.09.20 @ 15:46:21 End 2025.09.20 @ 16:41:55 Sessions 1 Manual Loads 0 Difficulty Rogue Special Mode None Game No. 492 Rogue 492 Adventurer 0 Explorer 0 Win Type - Total 0 Types 0/0/0/0/0/0/0/0/0/0 Lore% 54 Gallery% 52 Achievement% 42 Wizard Run 0 Options --------- Layout 1 ASCII 0 Keyboard 0 Movement Mouse Keybinds 0 Fullscreen 2 Font 24/Smallcaps Map View 50x35 Zoom Use 0% Tactical HUD 0 Map Filters NONE Filters NONE Steam 1 RUN: 06f1f3dc-a977-4cc8-a69a-671188e2e21e